fUSD/lending_fUSD_20250826
["ID","MTS","AMOUNT","RATE_DAILY","PERIOD"]
[381410094,1756187480121,-400.0,0.00016712,2]
[381410095,1756187480131,-636.63,0.00016712,2]
[381410096,1756187480140,-749.94,0.00016712,2]
[381410097,1756187480149,-677.9,0.00016712,2]
[381410098,1756187480159,-955.988122,0.00016712,2]
[381410099,1756187480168,-400.0,0.00016712,2]
[381410100,1756187480178,-5094.06,0.00016712,2]
[381410101,1756187480187,-400.0,0.00016712,2]
[381410102,1756187480197,-400.0,0.00016712,2]
[381410103,1756187480207,-783.73,0.00016712,2]
[381410104,1756187480216,-400.0,0.00016712,2]
[381410105,1756187480226,-682.0,0.00016712,2]
[381410106,1756187480235,-400.0,0.00016712,2]
[381410107,1756187480245,-834.51,0.00016712,2]
[381410108,1756187480255,-487.73,0.00016712,2]
[381410109,1756187480264,-400.0,0.00016712,2]
[381410110,1756187480274,-400.0,0.00016712,2]
[381410111,1756187480283,-597.96,0.00016712,2]
[381410112,1756187480293,-795.77,0.00016712,2]
[381410113,1756187480303,-1356.07,0.00016712,2]
[381410114,1756187480312,-1280.71,0.00016712,2]
[381410115,1756187480322,-1172.4,0.00016712,2]
[381410116,1756187480332,-1165.38,0.00016712,2]
[381410117,1756187480342,-713.09,0.00016712,2]
[381410118,1756187480351,-400.0,0.00016712,2]
[381410119,1756187480360,-205.44637,0.00016712,2]
[381410120,1756187480370,-205.44637,0.00016712,2]
[381410121,1756187480379,-767.79,0.00016712,2]
[381410122,1756187480388,-1211.28,0.00016712,2]
[381410123,1756187480398,-1161.28,0.00016712,2]
[381410124,1756187480408,-400.0,0.00016712,2]
[381410125,1756187480417,-641.5,0.00016712,2]
[381410126,1756187480426,-205.44637,0.00016712,2]
[381410127,1756187480435,-400.0,0.00016712,2]
[381410128,1756187480444,-280.8,0.00016712,2]
[381410129,1756187480453,-400.0,0.00016712,2]
[381410130,1756187480462,-765.07,0.00016712,2]
[381410131,1756187480472,-1238.05,0.00016712,2]
[381410132,1756187480481,-413.92,0.00016712,2]
[381410133,1756187480491,-1277.36,0.00016712,2]
[381410134,1756187480501,-1009.4,0.00016712,2]
[381410135,1756187480511,-412.08931625,0.00016712,2]
[381410136,1756187480520,-533.01,0.00016712,2]
[381410137,1756187480529,-1398.47,0.00016712,2]
[381410138,1756187480538,-1225.85,0.00016712,2]
[381410139,1756187480547,-400.0,0.00016712,2]
[381410140,1756187480556,-400.0,0.00016712,2]
[381410141,1756187480566,-534.7,0.00016712,2]
[381410142,1756187480584,-1191.52,0.00016712,2]
[381410143,1756187480605,-400.0,0.00016712,2]
[381410144,1756187480621,-400.0,0.00016712,2]
[381410145,1756187480631,-205.44637,0.00016712,2]
[381410146,1756187480641,-400.0,0.00016712,2]
[381410147,1756187480650,-400.0,0.00016712,2]
[381410148,1756187480659,-400.0,0.00016712,2]
[381410149,1756187480668,-400.0,0.00016712,2]
[381410150,1756187480677,-698.91,0.00016712,2]
[381410151,1756187480688,-704.75,0.00016712,2]
[381410152,1756187480698,-400.0,0.00016712,2]
[381410153,1756187480707,-1153.71,0.00016712,2]
[381410154,1756187480716,-1389.36,0.00016712,2]
[381410155,1756187480725,-639.38,0.00016712,2]
[381410156,1756187480735,-151.0,0.00016712,2]
[381410157,1756187480745,-400.0,0.00016712,2]
[381410158,1756187480754,-400.0,0.00016712,2]
[381410159,1756187480764,-400.0,0.00016712,2]
[381410160,1756187480774,-151.0,0.00016712,2]
[381410161,1756187480783,-400.0,0.00016712,2]
[381410162,1756187480793,-1111.26,0.00016712,2]
[381410163,1756187480802,-400.0,0.00016712,2]
[381410164,1756187480812,-1002.24,0.00016712,2]
[381410165,1756187480821,-151.0,0.00016712,2]
[381410166,1756187480831,-1111.2,0.00016712,2]
[381410167,1756187480840,-151.0,0.00016712,2]
[381410168,1756187480849,-906.63,0.00016712,2]
[381410169,1756187480859,-151.0,0.00016712,2]
[381410170,1756187480868,-400.0,0.00016712,2]
[381410171,1756187480878,-689.2,0.00016712,2]
[381410172,1756187480887,-725.19,0.00016712,2]
[381410173,1756187480896,-1000.0,0.00016712,2]
[381410174,1756187480905,-985.38,0.00016712,2]
[381410175,1756187480915,-889.22,0.00016712,2]
[381410176,1756187480924,-531.868591,0.00016712,2]
[381410177,1756187480933,-400.0,0.00016712,2]
[381410178,1756187480943,-837.35,0.00016712,2]
[381410179,1756187480952,-151.0,0.00016712,2]
[381410180,1756187480960,-151.0,0.00016712,2]
[381410181,1756187480970,-484.414218,0.00016712,2]
[381410182,1756187480979,-531.868591,0.00016712,2]
[381410183,1756187480990,-1291.17,0.00016712,2]
[381410184,1756187480999,-1200.14,0.00016712,2]
[381410185,1756187481009,-531.868591,0.00016712,2]
[381410186,1756187481019,-484.414218,0.00016712,2]
[381410187,1756187481028,-489.6,0.00016712,2]
[381410188,1756187481037,-151.0,0.00016712,2]
[381410189,1756187481046,-400.0,0.00016712,2]
[381410190,1756187481055,-484.414218,0.00016712,2]
[381410191,1756187481064,-531.868591,0.00016712,2]
[381410192,1756187481073,-400.0,0.00016712,2]
[381410193,1756187481217,-400.0,0.00016712,2]
[381410194,1756187481227,-974.88,0.00016712,2]
[381410195,1756187481236,-484.414218,0.00016712,2]
[381410196,1756187481246,-400.0,0.00016712,2]
[381410197,1756187481255,-400.0,0.00016712,2]
[381410198,1756187481265,-732.84,0.00016712,2]
[381410199,1756187481275,-1191.73,0.00016712,2]
[381410200,1756187481284,-151.0,0.00016712,2]
[381410201,1756187481294,-795.27,0.00016712,2]
[381410202,1756187481304,-578.8,0.00016712,2]
[381410203,1756187481314,-400.0,0.00016712,2]
[381410204,1756187481323,-739.93,0.00016712,2]
[381410205,1756187481333,-1313.09,0.00016712,2]
[381410206,1756187481342,-400.0,0.00016712,2]
[381410207,1756187481352,-529.3,0.00016712,2]
[381410208,1756187481362,-400.0,0.00016712,2]
[381410209,1756187481371,-739.21,0.00016712,2]
[381410210,1756187481381,-151.0,0.00016712,2]
[381410211,1756187481390,-400.0,0.00016712,2]
[381410212,1756187481399,-785.05,0.00016712,2]
[381410213,1756187481409,-687.05,0.00016712,2]
[381410214,1756187481419,-1272.45,0.00016712,2]
[381410215,1756187481428,-214.131079,0.00016712,2]
[381410216,1756187481438,-665.14,0.00016712,2]
[381410217,1756187481447,-1773.17,0.00016712,2]
[381410218,1756187481457,-1156.63,0.00016712,2]
[381410219,1756187481467,-400.0,0.00016712,2]
[381410220,1756187481476,-400.0,0.00016712,2]
[381410221,1756187481486,-6067.37,0.00016712,2]
[381410222,1756187481495,-1220.42,0.00016712,2]
[381410223,1756187481505,-1073.72,0.00016712,2]
[381410224,1756187481514,-400.0,0.00016712,2]
[381410225,1756187481524,-4354.63,0.00016712,2]
[381410226,1756187481533,-400.0,0.00016712,2]
[381410227,1756187481543,-2421.39,0.00016712,2]
[381410228,1756187481552,-1171.55,0.00016712,2]
[381410229,1756187481561,-1358.31,0.00016712,2]
[381410230,1756187481570,-400.0,0.00016712,2]
[381410231,1756187481580,-400.0,0.00016712,2]
[381410232,1756187481590,-874.65,0.00016712,2]
[381410233,1756187481604,-462.49,0.00016712,2]
[381410234,1756187481614,-1165.21,0.00016712,2]
[381410235,1756187481625,-670.41,0.00016712,2]
[381410236,1756187481637,-872.95,0.00016712,2]
[381410237,1756187481647,-400.0,0.00016712,2]
[381410238,1756187481656,-400.0,0.00016712,2]
[381410239,1756187481666,-451.22829819,0.00016712,2]
[381410240,1756187481678,-839.57,0.00016712,2]
[381410241,1756187481687,-151.0,0.00016712,2]
[381410242,1756187481697,-400.0,0.00016712,2]
[381410243,1756187481706,-400.0,0.00016712,2]
[381410244,1756187481716,-561.14,0.00016712,2]
[381410245,1756187481726,-429.97,0.00016712,2]
[381410246,1756187481736,-1374.13,0.00016712,2]
[381410247,1756187481746,-1152.73,0.00016712,2]
[381410248,1756187481756,-400.0,0.00016712,2]
[381410249,1756187481767,-1159.23,0.00016712,2]
[381410250,1756187481777,-694.57,0.00016712,2]
[381410251,1756187481786,-3050.555727,0.00016712,2]
[381410252,1756187481795,-549.54,0.00016712,2]
[381410253,1756187481805,-630.97,0.00016712,2]
[381410254,1756187481814,-901.29,0.00016712,2]
[381410255,1756187481823,-1265.35,0.00016712,2]
[381410256,1756187481833,-3050.555727,0.00016712,2]
[381410257,1756187481842,-400.0,0.00016712,2]
[381410258,1756187481853,-1188.91,0.00016712,2]
[381410259,1756187481863,-949.14,0.00016712,2]
[381410260,1756187481873,-3050.555727,0.00016712,2]
[381410261,1756187481883,-564.16,0.00016712,2]
[381410262,1756187481892,-1792.6229,0.00016712,2]
[381410263,1756187481903,-13233.13,0.00016712,2]
[381410264,1756187481912,-726.88,0.00016712,2]
[381410265,1756187481923,-617.13,0.00016712,2]
[381410266,1756187481932,-1792.6229,0.00016712,2]
[381410267,1756187481942,-3050.555727,0.00016712,2]
[381410268,1756187481952,-151.0,0.00016712,2]
[381410269,1756187481962,-1792.6229,0.00016712,2]
[381410270,1756187481974,-400.0,0.00016712,2]
[381410271,1756187481984,-400.0,0.00016712,2]
[381410272,1756187481997,-682.76,0.00016712,2]
[381410273,1756187482007,-849.74,0.00016712,2]
[381410274,1756187482017,-1792.6229,0.00016712,2]
[381410275,1756187482027,-500.82,0.00016712,2]
[381410276,1756187482036,-1401.09,0.00016712,2]
[381410277,1756187482046,-979.85,0.00016712,2]
[381410278,1756187482056,-400.0,0.00016712,2]
[381410279,1756187482067,-1900.46,0.00016712,2]
[381410280,1756187482077,-151.0,0.00016712,2]
[381410281,1756187482088,-1077.16,0.00016712,2]
[381410282,1756187482099,-744.2,0.00016712,2]
[381410283,1756187482109,-715.52,0.00016712,2]
[381410284,1756187482121,-400.0,0.00016712,2]
[381410285,1756187482131,-400.0,0.00016712,2]
[381410286,1756187482141,-400.0,0.00016712,2]
[381410287,1756187482151,-714.35,0.00016712,2]
[381410288,1756187482161,-458.7,0.00016712,2]
[381410289,1756187482171,-1096.76,0.00016712,2]
[381410290,1756187482180,-7864.083927,0.00016712,2]
[381410291,1756187482190,-1136.52,0.00016712,2]
[381410292,1756187482200,-2111.32,0.00016712,2]
[381410293,1756187482210,-882.84,0.00016712,2]
[381410294,1756187482221,-552.651174,0.00016712,2]
[381410295,1756187482232,-7864.083927,0.00016712,2]
[381410296,1756187482241,-400.0,0.00016712,2]
[381410297,1756187482251,-400.0,0.00016712,2]
[381410298,1756187482260,-400.0,0.00016712,2]
[381410299,1756187482270,-153.220756,0.00016712,2]
[381410300,1756187482279,-552.651174,0.00016712,2]
[381410301,1756187482288,-7864.083927,0.00016712,2]
[381410302,1756187482298,-400.0,0.00016712,2]
[381410303,1756187482307,-151.0,0.00016712,2]
[381410304,1756187482316,-400.0,0.00016712,2]
[381410305,1756187482325,-1546.36,0.00016712,2]
[381410306,1756187482335,-400.0,0.00016712,2]
[381410307,1756187482344,-7864.083927,0.00016712,2]
[381410308,1756187482353,-767.87,0.00016712,2]
[381410309,1756187482362,-151.0,0.00016712,2]
[381410310,1756187482372,-552.651174,0.00016712,2]
[381410311,1756187482381,-948.47,0.00016712,2]
[381410312,1756187482390,-430.19,0.00016712,2]
[381410313,1756187482400,-151.0,0.00016712,2]
[381410314,1756187482410,-552.651174,0.00016712,2]
[381410315,1756187482419,-1438.29,0.00016712,2]
[381410316,1756187482428,-1164.32,0.00016712,2]
[381410317,1756187482438,-1617.14,0.00016712,2]
[381410318,1756187482449,-400.0,0.00016712,2]
[381410319,1756187482460,-491.59,0.00016712,2]
[381410320,1756187482471,-1481.41,0.00016712,2]
[381410321,1756187482482,-400.0,0.00016712,2]
[381410322,1756187482493,-1480.65,0.00016712,2]
[381410323,1756187482502,-1644.26434,0.00016712,2]
[381410324,1756187482512,-400.0,0.00016712,2]
[381410325,1756187482522,-1644.26434,0.00016712,2]
[381410326,1756187482531,-400.0,0.00016712,2]
[381410327,1756187482540,-710.02,0.00016712,2]
[381410328,1756187482551,-1644.26434,0.00016712,2]
[381410329,1756187482560,-151.0,0.00016712,2]
[381410330,1756187482569,-1253.5,0.00016712,2]
[381410331,1756187482580,-402.572085,0.00016712,2]
[381410332,1756187482589,-1051.58,0.00016712,2]
[381410333,1756187482603,-1324.27,0.00016712,2]
[381410334,1756187482612,-787.07,0.00016712,2]
[381410335,1756187482621,-402.572085,0.00016712,2]
[381410336,1756187482630,-1644.26434,0.00016712,2]
[381410337,1756187482640,-151.0,0.00016712,2]
[381410338,1756187482650,-481.35,0.00016712,2]
[381410339,1756187482659,-400.0,0.00016712,2]
[381410340,1756187482668,-1018.91,0.00016712,2]
[381410341,1756187482678,-239.00359,0.00016712,2]
[381410342,1756187482689,-1585.9,0.00016712,2]
[381410343,1756187482698,-505.92,0.00016712,2]
[381410344,1756187482707,-1620.41,0.00016712,2]
[381410345,1756187482717,-402.572085,0.00016712,2]
[381410346,1756187482727,-400.0,0.00016712,2]
[381410347,1756187482736,-239.00359,0.00016712,2]
[381410348,1756187482746,-1051.0,0.00016712,2]
[381410349,1756187482755,-402.572085,0.00016712,2]
[381410350,1756187482766,-400.0,0.00016712,2]
[381410351,1756187482775,-451.27,0.00016712,2]
[381410352,1756187482785,-400.0,0.00016712,2]
[381410353,1756187482795,-239.00359,0.00016712,2]
[381410354,1756187482806,-532.76,0.00016712,2]
[381410355,1756187482815,-726.95,0.00016712,2]
[381410356,1756187482824,-1277.73,0.00016712,2]
[381410357,1756187482834,-1038.27,0.00016712,2]
[381410358,1756187482844,-808.62,0.00016712,2]
[381410359,1756187482854,-239.00359,0.00016712,2]
[381410360,1756187482864,-615.96,0.00016712,2]
[381410361,1756187482874,-400.0,0.00016712,2]
[381410362,1756187482883,-293.247661,0.00016712,2]
[381410363,1756187482892,-379.220915,0.00016712,2]
[381410364,1756187482901,-539.12,0.00016712,2]
[381410365,1756187482911,-400.0,0.00016712,2]
[381410366,1756187482920,-813.35,0.00016712,2]
[381410367,1756187482931,-379.220915,0.00016712,2]
[381410368,1756187482941,-293.247661,0.00016712,2]
[381410369,1756187482950,-400.0,0.00016712,2]
[381410370,1756187482961,-293.247661,0.00016712,2]
[381410371,1756187482972,-400.0,0.00016712,2]
[381410372,1756187482983,-379.220915,0.00016712,2]
[381410373,1756187482993,-1478.55,0.00016712,2]
[381410374,1756187483003,-308.49,0.00016712,2]
[381410375,1756187483013,-1718.09,0.00016712,2]
[381410376,1756187483022,-379.220915,0.00016712,2]
[381410377,1756187483032,-293.247661,0.00016712,2]
[381410378,1756187483042,-1252.48,0.00016712,2]
[381410379,1756187483051,-1256.11,0.00016712,2]
[381410380,1756187483062,-1202.35,0.00016712,2]
[381410381,1756187483071,-885.03,0.00016712,2]
[381410382,1756187483081,-870.91,0.00016712,2]
[381410383,1756187483090,-400.0,0.00016712,2]
[381410384,1756187483099,-856.35,0.00016712,2]
[381410385,1756187483109,-1387.35,0.00016712,2]
[381410386,1756187483119,-923.3,0.00016712,2]
[381410387,1756187483129,-400.0,0.00016712,2]
[381410388,1756187483138,-400.0,0.00016712,2]
[381410389,1756187483148,-489.38,0.00016712,2]
[381410390,1756187483157,-400.0,0.00016712,2]
[381410391,1756187483167,-1510.12,0.00016712,2]
[381410392,1756187483177,-719.38,0.00016712,2]
[381410393,1756187483187,-400.0,0.00016712,2]
[381410394,1756187483196,-1025.84,0.00016712,2]
[381410395,1756187483207,-400.0,0.00016712,2]
[381410396,1756187483218,-842.01,0.00016712,2]
[381410397,1756187483228,-714.93,0.00016712,2]
[381410398,1756187483238,-1370.63,0.00016712,2]
[381410399,1756187483248,-400.0,0.00016712,2]
[381410400,1756187483257,-400.0,0.00016712,2]
[381410401,1756187483267,-3367.13,0.00016712,2]
[381410402,1756187483276,-1412.24,0.00016712,2]
[381410403,1756187483286,-1033.86,0.00016712,2]
[381410404,1756187483296,-425.23,0.00016712,2]
[381410405,1756187483305,-400.0,0.00016712,2]
[381410406,1756187483317,-301.03148338,0.00016712,2]
[381410407,1756187483327,-964.49,0.00016712,2]
[381410408,1756187483337,-716.62,0.00016712,2]
[381410409,1756187483347,-510.44228549,0.00016712,2]
[381410410,1756187483357,-553.18,0.00016712,2]
[381410411,1756187483657,-400.0,0.00016712,2]
[381410412,1756187483714,-1439.33,0.00016712,2]
[381410413,1756187483724,-468.33,0.00016712,2]
[381410414,1756187483735,-1732.57,0.00016712,2]
[381410415,1756187483746,-400.0,0.00016712,2]
[381410416,1756187483756,-151.0,0.00016712,2]
[381410417,1756187483768,-1007.1,0.00016712,2]
[381410418,1756187483778,-2171.62,0.00016712,2]
[381410419,1756187483789,-151.0,0.00016712,2]
[381410420,1756187483799,-745.38,0.00016712,2]
[381410421,1756187483808,-497.06,0.00016712,2]
[381410422,1756187483817,-383.8921724,0.00016712,2]
[381410423,1756187483826,-151.0,0.00016712,2]
[381410424,1756187483835,-486.65,0.00016712,2]
[381410425,1756187483845,-2077.29,0.00016712,2]
[381410426,1756187483854,-1079.19,0.00016712,2]
[381410427,1756187483865,-1602.06,0.00016712,2]
[381410428,1756187483874,-1104.62,0.00016712,2]
[381410429,1756187483884,-1472.21,0.00016712,2]
[381410430,1756187483894,-481.67,0.00016712,2]
[381410431,1756187483905,-753.08,0.00016712,2]
[381410432,1756187483915,-400.0,0.00016712,2]
[381410433,1756187483924,-1526.79,0.00016712,2]
[381410434,1756187483935,-782.6,0.00016712,2]
[381410435,1756187483944,-1434.58,0.00016712,2]
[381410436,1756187483954,-936.8,0.00016712,2]
[381410437,1756187483963,-488.62,0.00016712,2]
[381410438,1756187483973,-500.0,0.00016712,2]
[381410439,1756187483982,-400.0,0.00016712,2]
[381410440,1756187483992,-812.34,0.00016712,2]
[381410441,1756187484001,-151.0,0.00016712,2]
[381410442,1756187484011,-768.94,0.00016712,2]
[381410443,1756187484021,-400.0,0.00016712,2]
[381410444,1756187484031,-1194.19,0.00016712,2]
[381410445,1756187484041,-151.0,0.00016712,2]
[381410446,1756187484051,-400.0,0.00016712,2]
[381410447,1756187484061,-400.0,0.00016712,2]
[381410448,1756187484071,-178.289117,0.00016712,2]
[381410449,1756187484081,-151.0,0.00016712,2]
[381410450,1756187484090,-400.0,0.00016712,2]
[381410451,1756187484101,-453.91,0.00016712,2]
[381410452,1756187484110,-178.289117,0.00016712,2]
[381410453,1756187484121,-777.29,0.00016712,2]
[381410454,1756187484131,-400.0,0.00016712,2]
[381410455,1756187484140,-459.94,0.00016712,2]
[381410456,1756187484151,-1085.13,0.00016712,2]
[381410457,1756187484161,-400.0,0.00016712,2]
[381410458,1756187484170,-151.0,0.00016712,2]
[381410459,1756187484180,-159.226878,0.00016712,2]
[381410460,1756187484190,-2896.42,0.00016712,2]
[381410461,1756187484200,-665.13,0.00016712,2]
[381410462,1756187484210,-1261.73,0.00016712,2]
[381410463,1756187484220,-178.289117,0.00016712,2]
[381410464,1756187484230,-186.028192,0.00016712,2]
[381410465,1756187484241,-525.15,0.00016712,2]
[381410466,1756187484251,-281.644923,0.00016712,2]
[381410467,1756187484261,-746.67,0.00016712,2]
[381410468,1756187484271,-158.73205,0.00016712,2]
[381410469,1756187484281,-400.0,0.00016712,2]
[381410470,1756187484291,-178.289117,0.00016712,2]
[381410471,1756187484301,-677.72,0.00016712,2]
[381410472,1756187484311,-1693.14,0.00016712,2]
[381410473,1756187484321,-781.95,0.00016712,2]
[381410474,1756187484331,-680.86,0.00016712,2]
[381410475,1756187484340,-853.1,0.00016712,2]
[381410476,1756187484350,-281.644923,0.00016712,2]
[381410477,1756187484359,-158.73205,0.00016712,2]
[381410478,1756187484370,-687.47,0.00016712,2]
[381410479,1756187484380,-758.77,0.00016712,2]
[381410480,1756187484389,-158.73205,0.00016712,2]
[381410481,1756187484399,-346.20496292,0.00016712,2]
[381410482,1756187484409,-400.0,0.00016712,2]
[381410483,1756187484419,-281.644923,0.00016712,2]
[381410484,1756187484429,-1327.91,0.00016712,2]
[381410485,1756187484439,-400.0,0.00016712,2]
[381410486,1756187484449,-158.73205,0.00016712,2]
[381410487,1756187484459,-281.644923,0.00016712,2]
[381410488,1756187484470,-448.35,0.00016712,2]
[381410489,1756187484480,-817.46,0.00016712,2]
[381410490,1756187484490,-596.47,0.00016712,2]
[381410491,1756187484500,-2027.77,0.00016712,2]
[381410492,1756187484510,-847.1,0.00016712,2]
[381410493,1756187484520,-1621.58,0.00016712,2]
[381410494,1756187484531,-614.9,0.00016712,2]
[381410495,1756187484541,-400.0,0.00016712,2]
[381410496,1756187484550,-782.54,0.00016712,2]
[381410497,1756187484560,-400.0,0.00016712,2]
[381410498,1756187484569,-500.0,0.00016725,2]
[381410499,1756187484580,-500.0,0.00016765,2]
[381410500,1756187484589,-433.0,0.00016771,2]
[381410501,1756187484602,-500.0,0.00016773,2]
[381410502,1756187484612,-500.0,0.00016773,2]
[381410503,1756187484621,-500.0,0.00016773,2]
[381410504,1756187484631,-500.0,0.00016773,2]
[381410505,1756187484640,-500.0,0.00016773,2]
[381410506,1756187484649,-161.88879398,0.00016773,2]
[381410507,1756187484659,-500.0,0.00016806,2]
[381410508,1756187484668,-371.35530053,0.00016819,2]
[381410509,1756187484677,-230.41074132,0.00016826,2]
[381410510,1756187484686,-500.0,0.00016847,2]
[381410511,1756187484695,-500.0,0.00016885,2]
[381410512,1756187484705,-500.0,0.00016885,2]
[381410513,1756187484714,-615.98213613,0.00016885,2]
[381410514,1756187484724,-156.65684745,0.00016886,2]
[381410515,1756187484733,-151.0,0.00016886,2]
[381410516,1756187484743,-500.0,0.00016888,2]
[381410517,1756187484752,-433.0,0.00016902,2]
[381410518,1756187484762,-1252.0,0.00016904,2]
[381410519,1756187484772,-433.0,0.00016926,2]
[381410520,1756187484782,-500.0,0.00016929,2]
[381410521,1756187484791,-433.0,0.00016951,2]
[381410522,1756187484801,-500.0,0.0001697,2]
[381410523,1756187484810,-300.0,0.00016972,2]
[381410524,1756187484819,-1079.36,0.00016975,2]
[381410525,1756187484829,-337.23,0.00016983,2]
[381410526,1756187484838,-300.0,0.00016985,2]
[381410527,1756187484848,-300.0,0.00016985,2]
[381410528,1756187484859,-500.0,0.00016985,2]
[381410529,1756187484871,-500.0,0.00016985,2]
[381410530,1756187484881,-300.0,0.00016985,2]
[381410531,1756187484890,-300.0,0.00016985,2]
[381410532,1756187484899,-300.0,0.00016985,2]
[381410533,1756187484910,-300.0,0.00016985,2]
[381410534,1756187484920,-300.0,0.00016985,2]
[381410535,1756187484931,-300.0,0.00016985,2]
[381410536,1756187484943,-400.0,0.00016986,2]
[381410537,1756187484953,-400.0,0.00016986,2]
[381410538,1756187484963,-400.0,0.00016986,2]
[381410539,1756187484973,-184.56921144,0.00016986,2]
[381410540,1756187484982,-400.0,0.00016986,2]
[381410541,1756187484992,-400.0,0.00016986,2]
[381410542,1756187485001,-387.92816633,0.00016986,2]
[381410543,1756187485011,-400.0,0.00016986,2]
[381410544,1756187485021,-400.0,0.00016986,2]
[381410545,1756187485031,-400.0,0.00016986,2]
[381410546,1756187485040,-400.0,0.00016986,2]
[381410547,1756187485050,-232.25795639,0.00016986,2]
[381410548,1756187485061,-294.30565097,0.00016986,2]
[381410549,1756187485072,-400.0,0.00016986,2]
[381410550,1756187485083,-400.0,0.00016986,2]
[381410551,1756187485095,-400.0,0.00016986,2]
[381410552,1756187485106,-400.0,0.00016986,2]
[381410553,1756187485117,-400.0,0.00016986,2]
[381410554,1756187485128,-905.28,0.00016986,2]
[381410555,1756187485139,-587.72,0.00016986,2]
[381410556,1756187485149,-746.05,0.00016986,2]
[381410557,1756187485159,-400.0,0.00016986,2]
[381410558,1756187485169,-400.0,0.00016986,2]
[381410559,1756187485179,-352.35537064,0.00016986,2]
[381410560,1756187485189,-400.0,0.00016986,2]
[381410561,1756187485198,-400.0,0.00016986,2]
[381410562,1756187485208,-400.0,0.00016986,2]
[381410563,1756187485217,-1081.06,0.00016986,2]
[381410564,1756187485226,-493.66,0.00016986,2]
[381410565,1756187485236,-485.57,0.00016986,2]
[381410566,1756187485245,-400.0,0.00016986,2]
[381410567,1756187485255,-1145.03,0.00016986,2]
[381410568,1756187485264,-400.0,0.00016986,2]
[381410569,1756187485273,-400.0,0.00016986,2]
[381410570,1756187485283,-606.47,0.00016986,2]
[381410571,1756187485292,-400.0,0.00016986,2]
[381410572,1756187485302,-400.0,0.00016986,2]
[381410573,1756187485312,-522.96,0.00016986,2]
[381410574,1756187485321,-619.8,0.00016986,2]
[381410575,1756187485331,-400.0,0.00016986,2]
[381410576,1756187485341,-400.0,0.00016986,2]
[381410577,1756187485350,-417.09,0.00016986,2]
[381410578,1756187485359,-751.49,0.00016986,2]
[381410579,1756187485369,-400.0,0.00016986,2]
[381410580,1756187485379,-401.31,0.00016986,2]
[381410581,1756187485388,-400.0,0.00016986,2]
[381410582,1756187485398,-762.29,0.00016986,2]
[381410583,1756187485408,-400.0,0.00016986,2]
[381410584,1756187485417,-400.0,0.00016986,2]
[381410585,1756187485427,-400.0,0.00016986,2]
[381410586,1756187485436,-669.78,0.00016986,2]
[381410587,1756187485446,-400.0,0.00016986,2]
[381410588,1756187485456,-712.53,0.00016986,2]
[381410589,1756187485465,-400.0,0.00016986,2]
[381410590,1756187485475,-400.0,0.00016986,2]
[381410591,1756187485484,-400.0,0.00016986,2]
[381410592,1756187485493,-400.0,0.00016986,2]
[381410593,1756187485503,-400.0,0.00016986,2]